fUST/lending_fUST_20240929
["ID","MTS","AMOUNT","RATE_DAILY","PERIOD"]
[339442030,1727616901109,-500.0,0.00016419,2]
[339442031,1727616901135,-507.63939897,0.00016419,2]
[339442032,1727616901160,-500.0,0.00016419,2]
[339442033,1727616901185,-3000.0,0.0001642,2]
[339442034,1727616901215,-3000.0,0.0001643,2]
[339442035,1727616901240,-3000.0,0.0001644,2]
[339442036,1727616901263,-3000.0,0.0001645,2]
[339442037,1727616901288,-3000.0,0.0001646,2]
[339442038,1727616901310,-3000.0,0.0001647,2]
[339442039,1727616901334,-3000.0,0.0001648,2]
[339442040,1727616901358,-3000.0,0.0001649,2]
[339442041,1727616901383,-3000.0,0.000165,2]
[339442042,1727616901408,-2363.28,0.000165,2]
[339442043,1727616901432,-3000.0,0.0001651,2]
[339442044,1727616901457,-3000.0,0.0001652,2]
[339442045,1727616901482,-3000.0,0.0001653,2]
[339442046,1727616901505,-3000.0,0.0001654,2]
[339442047,1727616901531,-3000.0,0.0001655,2]
[339442048,1727616901556,-3000.0,0.0001656,2]
[339442049,1727616901579,-3000.0,0.0001657,2]
[339442050,1727616901604,-3000.0,0.0001658,2]
[339442051,1727616901630,-3000.0,0.0001659,2]
[339442052,1727616901653,-225.000008,0.000166,2]
[339442053,1727616901677,-184.0,0.000166,2]
[339442054,1727616901702,-3000.0,0.000166,2]
[339442055,1727616901727,-3000.0,0.0001661,2]
[339442056,1727616901753,-3000.0,0.0001662,2]
[339442057,1727616901777,-3000.0,0.0001663,2]
[339442058,1727616901799,-3000.0,0.0001664,2]
[339442059,1727616901823,-3000.0,0.0001665,2]
[339442060,1727616901847,-3000.0,0.0001666,2]
[339442061,1727616901870,-3000.0,0.0001667,2]
[339442062,1727616901894,-3000.0,0.0001668,2]
[339442063,1727616901918,-3000.0,0.0001669,2]
[339442064,1727616901941,-3000.0,0.000167,2]
[339442065,1727616901964,-3000.0,0.0001671,2]
[339442066,1727616901989,-3000.0,0.0001672,2]
[339442067,1727616902015,-3000.0,0.0001673,2]
[339442068,1727616902041,-3406.902185,0.0001674,2]
[339442069,1727616902065,-360.7,0.00016783,2]
[339442070,1727616902091,-800.0,0.00017078,2]
[339442071,1727616902117,-360.7,0.000172,2]
[339442072,1727616902146,-1236.519,0.00017214,2]
[339442073,1727616902170,-800.0,0.0001726,2]
[339442074,1727616902196,-7067.94404438,0.00017272,2]
[339442075,1727616902220,-545.58036686,0.00017475,2]
[339442076,1727616902244,-293.09750296,0.0001748,2]
[339442077,1727616902267,-386.04670005,0.0001748,2]
[339442078,1727616902293,-500.0,0.0001748,2]
[339442079,1727616902315,-500.0,0.0001748,2]
[339442080,1727616902339,-150.112233,0.000175,2]
[339442081,1727616902362,-2900.0,0.0001752,2]
[339442082,1727616902388,-163.814465,0.00017523,2]
[339442083,1727616902411,-205.840956,0.00017523,2]
[339442084,1727616902434,-164.6059,0.00017523,2]
[339442085,1727616902456,-205.840956,0.00017523,2]
[339442086,1727616902478,-229.973398,0.00017523,2]
[339442087,1727616902501,-2602.402179,0.00017523,2]
[339442088,1727616902526,-163.612087,0.00017523,2]
[339442089,1727616902548,-3719.563653,0.00017523,2]
[339442090,1727616902570,-1323.35204,0.00017523,2]
[339442091,1727616902595,-929.890913,0.00017523,2]
[339442092,1727616902619,-204.515111,0.00017523,2]
[339442093,1727616902642,-500.0,0.0001758,2]
[339442094,1727616902664,-500.0,0.0001758,2]
[339442095,1727616902686,-500.0,0.0001758,2]
[339442096,1727616902710,-649.67408408,0.0001758,2]
[339442097,1727616902735,-150.0,0.00017596,2]
[339442098,1727616902759,-2003.00611248,0.000176,2]
[339442099,1727616902785,-360.7,0.00017616,2]
[339442100,1727616902808,-420.0,0.00017632,2]
[339442101,1727616902830,-3200.0,0.0001765,2]
[339442102,1727616902853,-300.635,0.0001765,2]
[339442103,1727616902875,-150.263,0.0001765,2]
[339442104,1727616902898,-153.0,0.00017668,2]
[339442105,1727616902921,-306.0,0.00017668,2]
[339442106,1727616902945,-150.112233,0.000177,2]
[339442107,1727616902968,-22654.52947205,0.000177,2]
[339442108,1727616902991,-37034.52744498,0.000177,2]
[339442112,1727617748504,-155.0,0.0001438,2]
[339442113,1727617748526,-191.7175611,0.00015342,2]
[339442167,1727617832282,-266.7887479,0.00015342,2]
[339442169,1727617832293,-333.2112521,0.00016,2]
[339442418,1727617838357,-1.0103101,0.00016,2]
[339442420,1727617838367,-251.6696899,0.000161,2]
[339442703,1727617841746,-1241.75132697,0.000161,2]
[339442716,1727617841859,-535.29242913,0.000161,2]
[339442718,1727617841868,-3470.78157202,0.00016328,2]
[339442720,1727617841878,-179.72241991,0.00016328,2]
[339442722,1727617841888,-3037.9491661,0.00016367,2]
[339442724,1727617841898,-150.112233,0.000164,2]
[339442726,1727617841907,-179.72241991,0.00016422,2]
[339442728,1727617841918,-300.0,0.00016426,2]
[339442730,1727617841927,-500.0,0.00016427,2]
[339442732,1727617841936,-288.83504001,0.00016427,2]
[339442734,1727617841947,-500.0,0.00016427,2]
[339442736,1727617841957,-405.34757928,0.00016427,2]
[339442738,1727617841967,-296.3772188,0.00016427,2]
[339442740,1727617841977,-500.0,0.00016427,2]
[339442742,1727617841986,-428.55881981,0.00016427,2]
[339442744,1727617841996,-500.0,0.00016427,2]
[339442746,1727617842005,-500.0,0.00016427,2]
[339442748,1727617842015,-500.0,0.00016427,2]
[339442750,1727617842025,-500.0,0.00016427,2]
[339442752,1727617842035,-500.0,0.00016427,2]
[339442754,1727617842046,-500.0,0.00016427,2]
[339442756,1727617842056,-500.0,0.00016427,2]
[339442759,1727617842066,-480.92664499,0.00016427,2]
[339442761,1727617842075,-500.0,0.00016427,2]
[339442763,1727617842084,-500.0,0.00016427,2]
[339442765,1727617842095,-500.0,0.00016427,2]
[339442767,1727617842107,-500.0,0.00016427,2]
[339442769,1727617842117,-500.0,0.00016427,2]
[339442771,1727617842126,-500.0,0.00016427,2]
[339442773,1727617842137,-500.0,0.00016427,2]
[339442775,1727617842148,-500.0,0.00016427,2]
[339442778,1727617842161,-500.0,0.00016427,2]
[339442780,1727617842171,-500.0,0.00016427,2]
[339442782,1727617842180,-500.0,0.00016427,2]
[339442784,1727617842190,-500.0,0.00016427,2]
[339442786,1727617842199,-500.0,0.00016427,2]
[339442788,1727617842211,-500.0,0.00016427,2]
[339442790,1727617842220,-500.0,0.00016427,2]
[339442792,1727617842230,-500.0,0.00016427,2]
[339442794,1727617842239,-500.0,0.00016427,2]
[339442796,1727617842248,-1612.3164495,0.00016428,2]
[339442798,1727617842259,-26355.62534013,0.00016428,2]
[339442900,1727617843216,-17623.8275711,0.00016428,2]
[339442902,1727617843228,-511.33648474,0.00016428,2]
[339442905,1727617843239,-1506.73271861,0.00016428,2]
[339442918,1727617843356,-564.24,0.00016428,2]
[339442922,1727617843367,-270.07175746,0.00016428,2]
[339443202,1727617846234,-4756.58516111,0.00016428,2]
[339443204,1727617846245,-536.0253987,0.00016428,2]
[339443207,1727617846262,-619.72788326,0.00016428,2]
[339443210,1727617846274,-123837.59850189,0.00016428,2]
[339443212,1727617846283,-129838.97299,0.00016428,2]
[339443214,1727617846292,-500.0,0.00016438,2]
[339443216,1727617846303,-500.0,0.00016438,2]
[339443218,1727617846313,-510.93561431,0.00016438,2]
[339443220,1727617846322,-500.0,0.00016438,2]
[339443222,1727617846333,-500.0,0.00016438,2]
[339443224,1727617846344,-500.0,0.00016438,2]
[339443226,1727617846356,-508.13891076,0.00016438,2]
[339443228,1727617846365,-500.0,0.00016438,2]
[339443230,1727617846374,-500.0,0.00016438,2]
[339443232,1727617846384,-688.05,0.00016438,2]
[339443234,1727617846393,-688.05,0.00016438,2]
[339443236,1727617846402,-688.05,0.00016438,2]
[339443238,1727617846412,-688.05,0.00016438,2]
[339443240,1727617846421,-688.05,0.00016438,2]
[339443242,1727617846431,-500.0,0.00016438,2]
[339443244,1727617846440,-500.0,0.00016438,2]
[339443246,1727617846449,-500.0,0.00016438,2]
[339443249,1727617846463,-805.3,0.00016438,2]
[339443251,1727617846473,-500.0,0.00016438,2]
[339443253,1727617846482,-500.0,0.00016438,2]
[339443255,1727617846491,-500.0,0.00016438,2]
[339443257,1727617846502,-500.0,0.00016438,2]
[339443259,1727617846512,-500.0,0.00016438,2]
[339443261,1727617846522,-500.0,0.00016438,2]
[339443263,1727617846532,-500.0,0.00016438,2]
[339443265,1727617846542,-500.0,0.00016438,2]
[339443267,1727617846551,-500.0,0.00016438,2]
[339443270,1727617846561,-500.0,0.00016438,2]
[339443271,1727617846571,-500.0,0.00016438,2]
[339443274,1727617846580,-500.0,0.00016438,2]
[339443276,1727617846590,-500.0,0.00016438,2]
[339443278,1727617846599,-542.82,0.00016438,2]
[339443280,1727617846611,-217.52092018,0.00016438,2]
[339443282,1727617846622,-500.0,0.00016438,2]
[339443284,1727617846633,-500.0,0.00016438,2]
[339443286,1727617846643,-500.0,0.00016438,2]
[339443310,1727617846864,-614.64,0.00016438,2]
[339443312,1727617846874,-646.1,0.00016438,2]
[339443314,1727617846884,-72.64888305,0.00016438,2]
[339447442,1727618043163,-713.574688,0.00015342,2]
[339447443,1727618043186,-250.0,0.00015496,2]
[339447444,1727618043210,-150.0,0.000161,2]
[339447445,1727618043233,-3036.9338755,0.00016327,2]
[339447446,1727618043255,-300.0,0.00016398,2]
[339447447,1727618043279,-500.0,0.00016399,2]
[339447448,1727618043305,-500.0,0.00016399,2]
[339447449,1727618043331,-500.0,0.00016399,2]
[339447450,1727618043354,-500.0,0.00016399,2]
[339447451,1727618043379,-500.0,0.00016399,2]
[339447452,1727618043401,-500.0,0.00016399,2]
[339447453,1727618043426,-500.0,0.00016399,2]
[339447454,1727618043449,-530.92664499,0.00016399,2]
[339447455,1727618043474,-500.0,0.00016399,2]
[339447456,1727618043499,-500.0,0.00016399,2]
[339447457,1727618043523,-500.0,0.00016399,2]
[339447458,1727618043549,-500.0,0.00016399,2]
[339447459,1727618043572,-500.0,0.00016399,2]
[339447460,1727618043596,-500.0,0.00016399,2]
[339447461,1727618043623,-500.0,0.00016399,2]
[339447462,1727618043647,-609.39626277,0.00016399,2]
[339447463,1727618043673,-500.0,0.00016399,2]
[339447464,1727618043921,-500.0,0.00016399,2]
[339447465,1727618043946,-500.0,0.00016399,2]
[339447466,1727618043973,-500.0,0.00016399,2]
[339447467,1727618043998,-500.0,0.00016399,2]
[339447468,1727618044023,-500.0,0.00016399,2]
[339447469,1727618044048,-500.0,0.00016399,2]
[339447470,1727618044073,-500.0,0.00016399,2]
[339447471,1727618044098,-500.0,0.00016399,2]
[339447472,1727618044123,-500.0,0.00016399,2]
[339447473,1727618044148,-500.0,0.00016399,2]
[339447474,1727618044172,-500.0,0.00016399,2]
[339447475,1727618044196,-500.0,0.00016399,2]
[339447476,1727618044220,-500.0,0.00016399,2]
[339447477,1727618044244,-500.0,0.00016399,2]
[339447478,1727618044268,-500.0,0.00016399,2]
[339447479,1727618044293,-500.0,0.00016399,2]
[339447480,1727618044318,-500.0,0.00016399,2]
[339447481,1727618044341,-500.0,0.00016399,2]
[339447482,1727618044365,-500.0,0.00016399,2]
[339447483,1727618044389,-500.0,0.00016399,2]
[339447484,1727618044412,-500.0,0.00016399,2]
[339447485,1727618044436,-500.0,0.00016399,2]
[339447486,1727618044460,-500.0,0.00016399,2]
[339447487,1727618044484,-300.0,0.00016399,2]
[339447488,1727618044509,-500.0,0.00016399,2]
[339447489,1727618044532,-500.0,0.00016399,2]
[339447490,1727618044555,-428.55881981,0.00016399,2]
[339447491,1727618044580,-500.0,0.00016399,2]
[339447492,1727618044603,-500.0,0.00016399,2]
[339447493,1727618044626,-19880.63390375,0.000164,2]
[339447494,1727618044649,-150.112233,0.000164,2]
[339447495,1727618055981,-206824.86357218,0.00016428,2]
[339447496,1727618106269,155.0,0.0001359,2]
[339447498,1727618234279,186658.956747,0.0001,2]
[339447788,1727618591799,3466.31459682,0.00014115,2]
[339448194,1727619038536,-2799.7569005,0.00014624,2]
[339448195,1727619038546,-800.0,0.00015091,2]
[339448196,1727619038556,-800.0,0.0001518,2]
[339448197,1727619038566,-200.219911,0.00015247,2]
[339448198,1727619038575,-300.0,0.00015281,2]
[339448199,1727619038585,-300.0,0.00015281,2]
[339448200,1727619038595,-11841.0330968,0.00015282,2]
[339448201,1727619038605,-677.895954,0.00015342,2]
[339448202,1727619038617,-800.0,0.00015382,2]
[339448203,1727619038627,-155.0,0.0001586,2]
[339448204,1727619038639,-306.0,0.000159,2]
[339448205,1727619038650,-153.0,0.00015941,2]
[339448206,1727619038660,-3000.0,0.000161,2]
[339448207,1727619038671,-424.73864301,0.00016109,2]
[339448208,1727619038680,-500.0,0.00016109,2]
[339448209,1727619038691,-500.0,0.00016109,2]
[339448210,1727619038701,-500.0,0.00016109,2]
[339448211,1727619038710,-500.0,0.00016109,2]
[339448212,1727619038720,-380.93962628,0.00016109,2]
[339448213,1727619038730,-500.0,0.00016109,2]
[339448214,1727619038741,-500.0,0.00016109,2]
[339448215,1727619038752,-500.0,0.00016109,2]
[339448216,1727619038762,-500.0,0.00016109,2]
[339448217,1727619038771,-500.0,0.00016109,2]
[339448218,1727619038781,-374.86482732,0.00016109,2]
[339448219,1727619038790,-390.94815593,0.00016109,2]
[339448220,1727619039268,-109.05184407,0.00016109,2]
[339448221,1727619039278,-500.0,0.00016109,2]
[339448222,1727619039287,-500.0,0.00016109,2]
[339448223,1727619039298,-500.0,0.00016109,2]
[339448224,1727619039307,-540.76102729,0.00016109,2]
[339448225,1727619039317,-500.0,0.00016109,2]
[339448226,1727619039327,-500.0,0.00016109,2]
[339448227,1727619039336,-500.0,0.00016109,2]
[339448228,1727619039346,-500.0,0.00016109,2]
[339448229,1727619039355,-3000.0,0.0001611,2]
[339448230,1727619039365,-1653.19359918,0.00016118,2]
[339448231,1727619039374,-3385.292429,0.0001612,2]
[339448232,1727619039384,-150.0,0.00016178,2]
[339448233,1727619039396,-3091.1648376,0.00016228,2]
[339448234,1727619039406,-800.0,0.00016233,2]
[339448235,1727619039416,-523.05080974,0.00016263,2]
[339448236,1727619039427,-549.99141792,0.00016263,2]
[339448237,1727619039436,-211.37090521,0.00016263,2]
[339448238,1727619039446,-185.51364041,0.00016263,2]
[339448239,1727619039455,-500.0,0.00016263,2]
[339448240,1727619039465,-500.0,0.00016263,2]
[339448241,1727619039474,-500.0,0.00016263,2]
[339448242,1727619039484,-145.86045162,0.00016263,2]
[339448243,1727619039496,-354.13954838,0.00016263,2]
[339448244,1727619039506,-274.64533641,0.00016263,2]
[339448245,1727619039515,-500.0,0.00016263,2]
[339448246,1727619039525,-7756.59848201,0.00016264,2]
[339448270,1727619040412,-14916.88040639,0.00016264,2]
[339448273,1727619040425,-5973.07695275,0.00016264,2]
[339448275,1727619040442,-51221.56733259,0.00016264,2]
[339448278,1727619040454,-82049.6343,0.00016264,2]
[339448615,1727619043864,-3199.49316026,0.00016264,2]
[339448617,1727619043874,-5165.30591901,0.00016264,2]
[339448622,1727619043906,-7.0865191,0.00016264,2]
[339455418,1727619984477,169.52829583,0.00021,60]
[339455429,1727620223600,425.09432,0.00022,120]
[339456274,1727620240729,-792.1075755,0.00014872,2]
[339456276,1727620240739,-200.219912,0.00015024,2]
[339456278,1727620240750,-644.001156,0.00015342,2]
[339456280,1727620240759,-300.0,0.00015998,2]
[339456282,1727620240769,-208.31831415,0.00015999,2]
[339456284,1727620240779,-500.0,0.00015999,2]
[339456286,1727620240788,-542.32662514,0.00015999,2]
[339456288,1727620240798,-337.86233636,0.00015999,2]
[339456290,1727620240807,-500.0,0.00015999,2]
[339456292,1727620240816,-1322.55487934,0.00016,2]
[339456294,1727620240825,-42797.97,0.00016,2]
[339456296,1727620240834,-153.0,0.00016,2]
[339456298,1727620240848,-3000.0,0.000161,2]
[339456300,1727620240860,-153.424126,0.000161,2]
[339456303,1727620240871,-153.0,0.000161,2]
[339456305,1727620240882,-306.7518642,0.000161,2]
[339456307,1727620240892,-4351.851838,0.0001611,2]
[339456309,1727620240904,-179.72241991,0.00016143,2]
[339456311,1727620240914,-179.72241991,0.0001615,2]
[339456313,1727620240925,-1000.0,0.00016154,2]
[339456315,1727620240935,-1432.91311416,0.00016154,2]
[339456317,1727620240947,-6522.24133655,0.00016155,2]
[339456319,1727620240957,-179.72241991,0.00016157,2]
[339456322,1727620240969,-179.72241991,0.00016164,2]
[339456324,1727620240980,-1000.0,0.000162,2]
[339456326,1727620240990,-150.112233,0.000162,2]
[339456328,1727620240999,-150.112233,0.000162,2]
[339456330,1727620241010,-150.112233,0.000162,2]
[339456332,1727620241020,-150.112233,0.000162,2]
[339456334,1727620241030,-150.112233,0.000162,2]
[339456336,1727620241040,-150.112233,0.000162,2]
[339456338,1727620241051,-153.1610119,0.00016222,2]
[339456340,1727620241060,-195.87575821,0.00016242,2]
[339456342,1727620241070,-500.0,0.00016242,2]
[339456344,1727620241079,-642.34739013,0.00016242,2]
[339456346,1727620241089,-366.13556682,0.00016242,2]
[339456349,1727620241099,-274.33764526,0.00016242,2]
[339456351,1727620241110,-500.0,0.00016242,2]
[339456353,1727620241120,-500.0,0.00016242,2]
[339456355,1727620241129,-500.0,0.00016242,2]
[339456357,1727620241140,-500.0,0.00016242,2]
[339456359,1727620241151,-500.0,0.00016242,2]
[339456361,1727620241160,-22780.31441698,0.00016243,2]
[339456499,1727620242460,241.28,0.0002,60]
[339464690,1727620495154,1000.890679,0.0001411,2]
[339464694,1727620955806,425.09424,0.00022,120]
[339464695,1727620990761,189.9406213,0.00014037,2]
[339464696,1727621009999,425.09424,0.00022,120]
[339464761,1727621431937,-296.30203372,0.00014844,2]
[339465364,1727621438098,-3.69796628,0.00014844,2]
[339465366,1727621438109,-300.0,0.00014844,2]
[339465368,1727621438121,-2270.49392575,0.00014845,2]
[339465370,1727621438134,-10962.43634175,0.00014845,2]
[339465372,1727621438143,-435.580993,0.00015342,2]
[339465374,1727621438153,-2890.1329654,0.00015989,2]
[339465376,1727621438163,-179.72241991,0.0001599,2]
[339465378,1727621438173,-1000.0,0.00016001,2]
[339465380,1727621438182,-1432.91311416,0.00016011,2]
[339465382,1727621438192,-179.72241991,0.00016041,2]
[339465384,1727621438202,-230.74659315,0.00016072,2]
[339465386,1727621438211,-364.45495948,0.00016072,2]
[339465388,1727621438221,-500.42804232,0.00016073,2]
[339465390,1727621438230,-500.0,0.00016073,2]
[339465392,1727621438240,-500.0,0.00016073,2]
[339465394,1727621438250,-500.0,0.00016073,2]
[339465397,1727621438262,-500.0,0.00016073,2]
[339465399,1727621438272,-500.0,0.00016073,2]
[339465401,1727621438284,-500.0,0.00016073,2]
[339465403,1727621438293,-500.0,0.00016073,2]
[339465406,1727621438305,-500.0,0.00016073,2]
[339465408,1727621438320,-500.0,0.00016073,2]
[339465410,1727621438330,-500.35145325,0.00016073,2]
[339465413,1727621438341,-500.0,0.00016073,2]
[339465415,1727621438351,-500.0,0.00016073,2]
[339465417,1727621438361,-500.0,0.00016073,2]
[339465419,1727621438372,-500.0,0.00016073,2]
[339465421,1727621438382,-299.47162713,0.00016073,2]
[339465423,1727621438391,-500.0,0.00016079,2]
[339465425,1727621438401,-366.13556682,0.00016079,2]
[339465427,1727621438410,-500.0,0.00016079,2]
[339465429,1727621438420,-500.0,0.00016079,2]
[339465431,1727621438430,-195.87575821,0.00016079,2]
[339465433,1727621438439,-642.34739013,0.00016079,2]
[339465435,1727621438449,-500.0,0.00016079,2]
[339465437,1727621438459,-374.33764526,0.00016079,2]
[339465439,1727621438468,-500.0,0.00016079,2]
[339465441,1727621438478,-400.0,0.00016079,2]
[339465443,1727621438488,-1058.04390348,0.00016079,2]
[339465446,1727621438498,-3539.99104074,0.0001608,2]
[339465624,1727621440139,-1658.77657503,0.0001608,2]
[339465976,1727621443439,-6128.49712025,0.0001608,2]
[339465978,1727621443451,-22193.09040427,0.0001608,2]
[339469857,1727621851179,425.09424,0.00022,120]
[339469925,1727622638433,-1500.0,0.00014744,2]
[339469945,1727622638610,-3478.3633889,0.00014744,2]
[339469947,1727622638619,-2092.1686397,0.0001477,2]
[339469949,1727622638629,-761.66098135,0.00014836,2]
[339469979,1727622638873,-428.902726,0.00014936,2]
[339469982,1727622638891,-181.75338535,0.00015242,2]
[339469984,1727622638902,-413.801944,0.00015342,2]
[339469986,1727622638912,-150.0,0.00015616,2]
[339469988,1727622638923,-428.902726,0.0001562,2]
[339469990,1727622638933,-300.0,0.0001568,2]
[339469993,1727622638946,-300.0,0.0001568,2]
[339469995,1727622638958,-6433.96339326,0.00015718,2]
[339469997,1727622638969,-181.75338535,0.00015742,2]
[339469999,1727622638978,-637.77369163,0.00015844,2]
[339470001,1727622638988,-153.0,0.000159,2]
[339470003,1727622638998,-2776.3987226,0.000159,2]
[339470005,1727622639007,-157.65978917,0.0001594,2]
[339470118,1727622646311,-50.97249795,0.0001594,2]
[339470119,1727622646321,-208.63228712,0.00015941,2]
[339470120,1727622646330,-208.63228712,0.00015941,2]
[339470121,1727622646339,-326.8846332,0.00015941,2]
[339470122,1727622646349,-326.8846332,0.00015946,2]
[339470123,1727622646359,-1000.0,0.0001595,2]
[339470124,1727622646369,-326.8846332,0.00015951,2]
[339470125,1727622646378,-326.8846332,0.00015956,2]
[339470126,1727622646388,-326.8846332,0.00015961,2]
[339470127,1727622646397,-233.71633169,0.0001599,2]
[339470128,1727622646406,-500.0,0.0001599,2]
[339470129,1727622646416,-500.0,0.0001599,2]
[339470130,1727622646427,-500.0,0.0001599,2]
[339470131,1727622646438,-500.0,0.0001599,2]
[339470132,1727622646451,-155.03994702,0.0001599,2]
[339470133,1727622646460,-36.7888268,0.00015991,2]
[339470134,1727622648501,194.8279986,0.00010959,2]
[339470135,1727622648540,686.5420014,0.00010959,2]
[339470137,1727622716459,155.0,0.0001287,2]
[339470138,1727622805552,219.610974,0.00014111,2]
[339470141,1727622916525,214.451363,0.00014007,2]
[339470142,1727622942288,202.2202069,0.00014007,2]
[339470144,1727623215446,24900.0,0.00013991,2]
[339470146,1727623267687,250.0,0.00013992,2]
[339470148,1727623290339,193.327573,0.00014102,2]
[339470149,1727623313249,155.0,0.00012,2]
[339470150,1727623326660,599.7338392,0.00013593,2]
[339470152,1727623368030,209.915443,0.00013699,2]
[339470154,1727623499109,434.173106,0.00013699,2]
[339470159,1727623792643,20589.1941932,0.0001363,2]
[339470160,1727623792673,4310.8058068,0.0001363,2]
[339470161,1727623801585,190.782346,0.00012949,2]
[339470181,1727623832257,-193.327573,0.00014141,2]
[339470182,1727623832267,-106.86157623,0.00014179,2]
[339470183,1727623832280,-86.46599677,0.00014179,2]
[339470184,1727623832292,-193.327573,0.00014218,2]
[339470185,1727623832304,-193.327573,0.00014257,2]
[339470186,1727623832315,-193.327573,0.00014296,2]
[339470187,1727623832326,-193.327573,0.00014334,2]
[339470188,1727623832336,-193.327573,0.00014373,2]
[339470189,1727623832346,-434.173106,0.00014384,2]
[339470190,1727623832356,-193.327573,0.00014412,2]
[339470191,1727623832365,-193.327573,0.0001445,2]
[339470192,1727623832374,-193.327573,0.00014489,2]
[339470193,1727623832383,-193.327573,0.00014528,2]
[339470194,1727623832393,-193.327573,0.00014566,2]
[339470195,1727623832403,-193.327573,0.00014605,2]
[339470196,1727623832413,-193.327573,0.00014644,2]
[339470197,1727623832423,-193.327573,0.00014682,2]
[339470198,1727623832432,-193.327573,0.00014721,2]
[339470199,1727623832441,-193.327573,0.0001476,2]
[339470200,1727623832450,-193.327573,0.00014798,2]
[339470201,1727623832459,-193.327573,0.00014837,2]
[339470202,1727623832469,-2645.93971292,0.00014876,2]
[339470203,1727623832477,-255.69946042,0.00014888,2]
[339470204,1727623832490,-743.60915781,0.00014888,2]
[339470205,1727623832500,-300.0,0.00014906,2]
[339470206,1727623832509,-300.0,0.00014907,2]
[339470207,1727623832519,-1605.49880209,0.00014908,2]
[339470208,1727623832529,-500.0,0.00014973,2]
[339470209,1727623832540,-500.0,0.00014973,2]
[339470210,1727623832551,-500.0,0.00014973,2]
[339470211,1727623832560,-500.0,0.00014973,2]
[339470212,1727623832569,-135.8447145,0.00014973,2]
[339470213,1727623832580,-64.45143406,0.00014973,2]
[339470214,1727623832589,-360.70040413,0.00014973,2]
[339470215,1727623832601,-500.0,0.00014973,2]
[339470216,1727623832612,-500.0,0.00014973,2]
[339470217,1727623832621,-500.0,0.00014973,2]
[339470218,1727623832631,-500.0,0.00014973,2]
[339470219,1727623832641,-500.0,0.00014973,2]
[339470220,1727623832650,-500.0,0.00014973,2]
[339470221,1727623832659,-500.0,0.00014973,2]
[339470222,1727623832668,-500.0,0.00014973,2]
[339470223,1727623832677,-497.85330533,0.00014973,2]
[339470224,1727623832686,-500.0,0.00014973,2]
[339470225,1727623832696,-504.31561839,0.00014973,2]
[339470226,1727623832705,-424.67923809,0.00014973,2]
[339470227,1727623832717,-75.32076191,0.00014973,2]
[339470228,1727623832726,-602.51264548,0.00014973,2]
[339470229,1727623832735,-500.0,0.00014973,2]
[339470230,1727623832744,-151.0,0.00014976,2]
[339470231,1727623832753,-151.0,0.00014976,2]
[339470232,1727623832762,-2517.73013975,0.00014976,2]
[339470233,1727623832772,-500.0,0.00014976,2]
[339470234,1727623832782,-238.39446352,0.00014976,2]
[339470235,1727623832791,-500.0,0.00014976,2]
[339470236,1727623832800,-334.0078816,0.00014976,2]
[339470237,1727623832809,-500.0,0.00014976,2]
[339470238,1727623832818,-321.68410774,0.00014976,2]
[339470239,1727623832830,-178.31589226,0.00014976,2]
[339470240,1727623832839,-544.8739634,0.00014976,2]
[339470241,1727623832848,-293.90713204,0.00014976,2]
[339470242,1727623832857,-500.0,0.00014976,2]
[339470243,1727623832866,-500.0,0.00014976,2]